[Event "WYCC 2018 G18"]
[Site "Halkidiki"]
[Date "2018.10.28"]
[Round "9"]
[White "Sevilla, Julia"]
[Black "Tonso, Liina"]
[Result "1-0"]
[ECO "A52"]
[WhiteElo "1947"]
[BlackElo "1805"]
[Annotator "NA"]
[PlyCount "139"]
[EventDate "2018.10.20"]
[EventType "swiss"]
[EventCountry "GRE"]
[SourceTitle "playchess.com"]
[Source "ChessBase"]
[SourceQuality "1"]
[TimeControl "40/5400+30:1800+30"]

1. d4 {[%emt 0:00:00]} Nf6 {[%emt 0:00:00]} 2. c4 {[%emt 0:00:00]} e5 {[%emt 0:00:00]} 3. dxe5 {[%emt 0:00:00]} Ng4 {[%emt 0:00:05]} 4. Nf3 {[%emt 0:00:00]} Nc6 {[%emt 0:00:16]} 5. e3 {[%emt 0:00:03]} Ngxe5 {[%emt 0:01:10]} 6. Nxe5 {[%emt 0:00:07]} Nxe5 {[%emt 0:00:12]} 7. Be2 {[%emt 0:00:05]} d6 {[%emt 0:07:24]} 8. O-O {[%emt 0:00:42]} Be7 {[%emt 0:02:08]} 9. Nc3 {[%emt 0:01:21]} c6 {[%emt 0:03:01]} 10. b3 {[%emt 0:04:49]} O-O {[%emt 0:03:17]} 11. Bb2 {[%emt 0:00:29]} f5 {[%emt 0:01:58]} 12. Qd2 {[%emt 0:06:17]} a6 {[%emt 0:09:54]} 13. Rfd1 {[%emt 0:02:52]} Rf6 {[%emt 0:07:27]} 14. Na4 {[%emt 0:07:08]} b5 {[%emt 0:16:33]} 15. Bxe5 {[%emt 0:06:08]} Re6 {[%emt 0:04:26]} 16. c5 {[%emt 0:08:21]} Rxe5 {[%emt 0:05:28]} 17. Nb6 {[%emt 0:02:25]} Ra7 {[%emt 0:05:48]} 18. cxd6 {[%emt 0:10:38]} Qxb6 {[%emt 0:04:29]} 19. dxe7 {[%emt 0:00:04]} Raxe7 {[%emt 0:00:44]} 20. Qd8+ {[%emt 0:03:59]} Qxd8 {[%emt 0:00:19]} 21. Rxd8+ {[%emt 0:00:02]} Re8 {[%emt 0:00:11]} 22. Rad1 {[%emt 0:00:05]} Kf7 {[%emt 0:02:38]} 23. Bf3 {[%emt 0:03:33]} Rc5 {[%emt 0:03:52]} 24. Kf1 {[%emt 0:02:33]} Rc2 {[%emt 0:01:52]} 25. R1d2 {[%emt 0:02:21]} Rc1+ {[%emt 0:01:45]} 26. Ke2 {[%emt 0:01:01]} b4 {[%emt 0:01:25]} 27. R8d6 {[%emt 0:09:13]} Bb7 {[%emt 0:01:52]} 28. R6d4 {[%emt 0:01:35]} a5 {[%emt 0:00:49]} 29. Rd7+ {[%emt 0:03:33]} Re7 {[%emt 0:00:09]} 30. Rxe7+ {[%emt 0:00:07]} Kxe7 {[%emt 0:00:05]} 31. Kd3 {[%emt 0:05:25]} Ba6+ {[%emt 0:03:15]} 32. Kd4 {[%emt 0:00:26]} Ke6 {[%emt 0:04:40]} 33. e4 {[%emt 0:00:45]} c5+ {[%emt 0:02:14]} 34. Ke3 {[%emt 0:01:07]} Rc3+ {[%emt 0:03:53]} 35. Kf4 {[%emt 0:00:12]} fxe4 {[%emt 0:00:42]} 36. Bxe4 {[%emt 0:00:51]} c4 {[%emt 0:00:59]} 37. Bxh7 {[%emt 0:00:42]} cxb3 {[%emt 0:00:51]} 38. axb3 {[%emt 0:00:26]} Bb7 {[%emt 0:01:58]} 39. Bf5+ {[%emt 0:00:52]} Kf6 {[%emt 0:00:36]} 40. Rd6+ {[%emt 0:00:00]} Ke7 {[%emt 0:00:00]} 41. Rd7+ {[%emt 0:00:24]} Kf6 {[%emt 0:01:02]} 42. Rxb7 {[%emt 0:00:22]} Rxb3 {[%emt 0:00:42]} 43. Ra7 {[%emt 0:05:34]} Ra3 {[%emt 0:01:30]} 44. h4 {[%emt 0:04:23]} b3 {[%emt 0:04:15]} 45. g4 {[%emt 0:01:36]} Ra4+ {[%emt 0:00:14]} 46. Ke3 {[%emt 0:00:19]} Ra2 {[%emt 0:02:45]} 47. Ra6+ {[%emt 0:07:05]} Ke7 {[%emt 0:03:20]} 48. Re6+ {[%emt 0:08:13]} Kf7 {[%emt 0:03:04]} 49. g5 {[%emt 0:18:11]} b2 {[%emt 0:01:56]} 50. Rb6 {[%emt 0:03:20]} Ke7 {[%emt 0:01:12]} 51. Bb1 {[%emt 0:00:23]} Ra4 {[%emt 0:00:48]} 52. Rxb2 {[%emt 0:00:27]} Rxh4 {[%emt 0:00:19]} 53. Ra2 {[%emt 0:00:11]} a4 {[%emt 0:01:00]} 54. Bc2 {[%emt 0:00:15]} Rh5 {[%emt 0:01:39]} 55. g6 {[%emt 0:00:33]} Rh3+ {[%emt 0:00:21]} 56. Ke2 {[%emt 0:00:38]} a3 {[%emt 0:00:35]} 57. Bd3 {[%emt 0:00:07]} Rh5 {[%emt 0:01:15]} 58. Rxa3 {[%emt 0:00:07]} Re5+ {[%emt 0:01:28]} 59. Kf3 {[%emt 0:00:21]} Rc5 {[%emt 0:00:57]} 60. Ra7+ {[%emt 0:00:10]} Kf8 {[%emt 0:00:47]} 61. Rf7+ {[%emt 0:00:50]} Kg8 {[%emt 0:00:21]} 62. Bf5 {[%emt 0:00:18]} Re5 {[%emt 0:01:12]} 63. Kg4 {[%emt 0:01:00]} Re1 {[%emt 0:01:03]} 64. f4 {[%emt 0:00:38]} Rg1+ {[%emt 0:01:05]} 65. Kf3 {[%emt 0:00:15]} Re1 {[%emt 0:00:22]} 66. Bd7 {[%emt 0:00:23]} Ra1 {[%emt 0:01:53]} 67. f5 {[%emt 0:00:20]} Ra8 {[%emt 0:00:36]} 68. Be6 {[%emt 0:00:19]} Kh8 {[%emt 0:00:29]} 69. Rc7 {[%emt 0:00:56]} Rf8 {[%emt 0:00:54]} 70. Rc4 {[%emt 0:00:17]} 1-0

[Event "WYCC 2018 G18"]
[Site "Halkidiki"]
[Date "2018.10.28"]
[Round "9"]
[White "Golsta, Madara"]
[Black "Cibikova, Sofia Anna"]
[Result "1-0"]
[ECO "B24"]
[WhiteElo "1938"]
[BlackElo "1809"]
[Annotator "NA"]
[PlyCount "81"]
[EventDate "2018.10.20"]
[EventType "swiss"]
[EventCountry "GRE"]
[SourceTitle "playchess.com"]
[Source "ChessBase"]
[SourceQuality "1"]
[TimeControl "40/5400+30:1800+30"]

1. e4 {[%emt 0:00:00]} c5 {[%emt 0:00:00]} 2. Nc3 {[%emt 0:00:04]} Nc6 {[%emt 0:00:00]} 3. Bb5 {[%emt 0:00:50]} Nd4 {[%emt 0:00:34]} 4. Bc4 {[%emt 0:00:59]} e6 {[%emt 0:00:43]} 5. Nge2 {[%emt 0:00:57]} Nf6 {[%emt 0:02:31]} 6. O-O {[%emt 0:02:13]} a6 {[%emt 0:02:01]} 7. a4 {[%emt 0:00:47]} Be7 {[%emt 0:05:18]} 8. d3 {[%emt 0:02:53]} d5 {[%emt 0:05:27]} 9. exd5 {[%emt 0:01:40]} exd5 {[%emt 0:00:09]} 10. Ba2 {[%emt 0:00:23]} Nxe2+ {[%emt 0:05:44]} 11. Qxe2 {[%emt 0:01:43]} Be6 {[%emt 0:00:36]} 12. Bg5 {[%emt 0:04:44]} O-O {[%emt 0:03:06]} 13. f4 {[%emt 0:08:44]} Qd7 {[%emt 0:14:03]} 14. Rae1 {[%emt 0:04:43]} Rae8 {[%emt 0:08:29]} 15. Qf3 {[%emt 0:05:32]} d4 {[%emt 0:09:06]} 16. Bxe6 {[%emt 0:07:41]} fxe6 {[%emt 0:00:08]} 17. Bxf6 {[%emt 0:00:26]} Bxf6 {[%emt 0:02:43]} 18. Ne4 {[%emt 0:00:16]} Be7 {[%emt 0:01:27]} 19. Qg4 {[%emt 0:02:56]} Rf7 {[%emt 0:04:47]} 20. b3 {[%emt 0:02:40]} Qd5 {[%emt 0:09:11]} 21. Nd2 {[%emt 0:10:58]} Rf6 {[%emt 0:04:28]} 22. Re5 {[%emt 0:01:16]} Qc6 {[%emt 0:01:58]} 23. g3 {[%emt 0:09:27]} Rg6 {[%emt 0:02:33]} 24. Qh5 {[%emt 0:00:59]} Bd6 {[%emt 0:03:13]} 25. Rg5 {[%emt 0:08:18]} Rxg5 {[%emt 0:01:32]} 26. Qxg5 {[%emt 0:00:18]} h6 {[%emt 0:00:55]} 27. Qg6 {[%emt 0:00:32]} Bc7 {[%emt 0:03:40]} 28. Ne4 {[%emt 0:02:05]} Rf8 {[%emt 0:00:08]} 29. Re1 {[%emt 0:08:59]} b6 {[%emt 0:01:30]} 30. Nd2 {[%emt 0:02:39]} Rf6 {[%emt 0:00:38]} 31. Qg4 {[%emt 0:00:20]} Qd5 {[%emt 0:01:54]} 32. Ne4 {[%emt 0:01:51]} Rf7 {[%emt 0:00:39]} 33. Nf2 {[%emt 0:00:57]} Qf5 {[%emt 0:00:25]} 34. Rxe6 {[%emt 0:00:28]} Qxg4 {[%emt 0:01:22]} 35. Nxg4 {[%emt 0:00:12]} Rd7 {[%emt 0:01:04]} 36. a5 {[%emt 0:02:11]} bxa5 {[%emt 0:01:10]} 37. Rxa6 {[%emt 0:00:12]} Re7 {[%emt 0:01:48]} 38. Kf1 {[%emt 0:00:14]} h5 {[%emt 0:01:05]} 39. Nf2 {[%emt 0:00:20]} Rf7 {[%emt 0:00:46]} 40. Ne4 {[%emt 0:00:00]} h4 {[%emt 0:00:00]} 41. Ng5 {[%emt 0:00:31]} 1-0

[Event "WYCC 2018 G18"]
[Site "Halkidiki"]
[Date "2018.10.28"]
[Round "9"]
[White "Koehler, Inken"]
[Black "Priyanka, Kumari"]
[Result "0-1"]
[ECO "B51"]
[WhiteElo "1934"]
[BlackElo "2005"]
[Annotator "NA"]
[PlyCount "68"]
[EventDate "2018.10.20"]
[EventType "swiss"]
[EventCountry "GRE"]
[SourceTitle "playchess.com"]
[Source "ChessBase"]
[SourceQuality "1"]
[TimeControl "40/5400+30:1800+30"]

1. e4 {[%emt 0:00:00]} c5 {[%emt 0:00:19]} 2. Nf3 {[%emt 0:00:00]} d6 {[%emt 0:00:06]} 3. Bb5+ {[%emt 0:00:00]} Nd7 {[%emt 0:00:15]} 4. O-O {[%emt 0:00:09]} a6 {[%emt 0:00:10]} 5. Bd3 {[%emt 0:00:13]} Ngf6 {[%emt 0:00:13]} 6. c3 {[%emt 0:00:25]} e5 {[%emt 0:00:31]} 7. Bc2 {[%emt 0:00:50]} g6 {[%emt 0:01:01]} 8. d4 {[%emt 0:01:00]} Qc7 {[%emt 0:00:31]} 9. Re1 {[%emt 0:02:05]} Bg7 {[%emt 0:02:06]} 10. dxe5 {[%emt 0:01:33]} dxe5 {[%emt 0:00:52]} 11. a4 {[%emt 0:00:41]} O-O {[%emt 0:03:59]} 12. Na3 {[%emt 0:01:15]} b6 {[%emt 0:07:01]} 13. Nc4 {[%emt 0:02:04]} Bb7 {[%emt 0:10:52]} 14. Qd6 {[%emt 0:08:06]} Qxd6 {[%emt 0:05:20]} 15. Nxd6 {[%emt 0:00:06]} Bc6 {[%emt 0:00:48]} 16. Bb3 {[%emt 0:00:54]} b5 {[%emt 0:10:33]} 17. axb5 {[%emt 0:00:35]} axb5 {[%emt 0:00:11]} 18. Rxa8 {[%emt 0:00:33]} Bxa8 {[%emt 0:00:58]} 19. Nxb5 {[%emt 0:01:08]} Rb8 {[%emt 0:09:01]} 20. Bc4 {[%emt 0:06:36]} Nxe4 {[%emt 0:00:47]} 21. Bd3 {[%emt 0:13:48]} f5 {[%emt 0:00:43]} 22. Bc4+ {[%emt 0:00:55]} Kh8 {[%emt 0:01:45]} 23. Ng5 {[%emt 0:03:00]} Nxg5 {[%emt 0:07:52]} 24. Bxg5 {[%emt 0:01:50]} Bc6 {[%emt 0:01:09]} 25. Nd6 {[%emt 0:01:23]} h6 {[%emt 0:00:31]} 26. Bc1 {[%emt 0:01:36]} Kh7 {[%emt 0:03:08]} 27. Rd1 {[%emt 0:13:18]} e4 {[%emt 0:05:53]} 28. Be6 {[%emt 0:07:29]} Ne5 {[%emt 0:02:56]} 29. Bc4 {[%emt 0:04:47]} Ba4 {[%emt 0:10:57]} 30. Rd5 {[%emt 0:16:09]} Nxc4 {[%emt 0:02:45]} 31. Nxc4 {[%emt 0:00:08]} Bb3 {[%emt 0:00:05]} 32. Ne3 {[%emt 0:04:40]} Bxd5 {[%emt 0:01:34]} 33. Nxd5 {[%emt 0:00:07]} Ra8 {[%emt 0:00:10]} 34. Nf4 {[%emt 0:00:19]} Rd8 {[%emt 0:00:26]} 0-1

[Event "WYCC 2018 G18"]
[Site "Halkidiki"]
[Date "2018.10.28"]
[Round "9"]
[White "Vlkova, Anezka"]
[Black "Greibrokk, Ingrid"]
[Result "1-0"]
[ECO "B23"]
[WhiteElo "1925"]
[BlackElo "2018"]
[Annotator "NA"]
[PlyCount "107"]
[EventDate "2018.10.20"]
[EventType "swiss"]
[EventCountry "GRE"]
[SourceTitle "playchess.com"]
[Source "ChessBase"]
[SourceQuality "1"]
[TimeControl "40/5400+30:1800+30"]

1. e4 {[%emt 0:00:00]} c5 {[%emt 0:00:00]} 2. Nc3 {[%emt 0:00:30]} d6 {[%emt 0:00:30]} 3. f4 {[%emt 0:00:30]} Nc6 {[%emt 0:00:30]} 4. Nf3 {[%emt 0:00:30]} e6 {[%emt 0:00:00]} 5. Bc4 {[%emt 0:00:00]} Nge7 {[%emt 0:00:00]} 6. O-O {[%emt 0:00:48]} g6 {[%emt 0:00:19]} 7. d4 {[%emt 0:00:33]} cxd4 {[%emt 0:00:20]} 8. Nxd4 {[%emt 0:01:55]} Bg7 {[%emt 0:04:48]} 9. Ndb5 {[%emt 0:02:31]} O-O {[%emt 0:00:34]} 10. Be3 {[%emt 0:17:42]} d5 {[%emt 0:32:24]} 11. exd5 {[%emt 0:00:16]} exd5 {[%emt 0:02:32]} 12. Bxd5 {[%emt 0:02:25]} Nxd5 {[%emt 0:03:50]} 13. Nxd5 {[%emt 0:00:20]} Bg4 {[%emt 0:18:27]} 14. Qxg4 {[%emt 0:04:18]} Qxd5 {[%emt 0:00:06]} 15. Nc7 {[%emt 0:06:17]} Qe4 {[%emt 0:00:31]} 16. Qf3 {[%emt 0:02:13]} Qxf3 {[%emt 0:00:22]} 17. Rxf3 {[%emt 0:00:11]} Rac8 {[%emt 0:04:55]} 18. Nd5 {[%emt 0:00:49]} Rfd8 {[%emt 0:01:27]} 19. Rd1 {[%emt 0:21:15]} Bxb2 {[%emt 0:02:04]} 20. c3 {[%emt 0:01:20]} Ba3 {[%emt 0:05:17]} 21. Bf2 {[%emt 0:02:13]} Ne7 {[%emt 0:06:33]} 22. Nf6+ {[%emt 0:04:40]} Kg7 {[%emt 0:00:34]} 23. Nd7 {[%emt 0:03:52]} Bc5 {[%emt 0:07:43]} 24. g4 {[%emt 0:00:44]} Bxf2+ {[%emt 0:00:38]} 25. Kxf2 {[%emt 0:00:06]} Rc7 {[%emt 0:00:16]} 26. Rfd3 {[%emt 0:00:27]} f5 {[%emt 0:02:49]} 27. g5 {[%emt 0:01:10]} b6 {[%emt 0:02:06]} 28. Kf3 {[%emt 0:02:54]} Rdc8 {[%emt 0:00:51]} 29. Re1 {[%emt 0:00:38]} Ng8 {[%emt 0:01:24]} 30. Ree3 {[%emt 0:06:57]} Rd8 {[%emt 0:01:11]} 31. Ne5 {[%emt 0:02:46]} Rxd3 {[%emt 0:00:08]} 32. Rxd3 {[%emt 0:00:04]} Ne7 {[%emt 0:00:53]} 33. Ke3 {[%emt 0:01:10]} h6 {[%emt 0:01:25]} 34. h4 {[%emt 0:00:24]} hxg5 {[%emt 0:00:06]} 35. hxg5 {[%emt 0:00:07]} Nc6 {[%emt 0:00:41]} 36. Nxc6 {[%emt 0:00:47]} Rxc6 {[%emt 0:00:00]} 37. Rd7+ {[%emt 0:00:22]} Kf8 {[%emt 0:00:37]} 38. Kd4 {[%emt 0:00:07]} a6 {[%emt 0:00:45]} 39. c4 {[%emt 0:01:20]} b5 {[%emt 0:00:20]} 40. c5 {[%emt 0:08:50]} Ke8 {[%emt 0:00:00]} 41. Rg7 {[%emt 0:04:52]} Re6 {[%emt 0:06:58]} 42. Kd5 {[%emt 0:00:13]} Re2 {[%emt 0:00:12]} 43. c6 {[%emt 0:04:29]} Kd8 {[%emt 0:05:30]} 44. Kc5 {[%emt 0:01:18]} Rxa2 {[%emt 0:04:23]} 45. Kb6 {[%emt 0:00:30]} Rc2 {[%emt 0:00:51]} 46. Kb7 {[%emt 0:00:17]} b4 {[%emt 0:01:32]} 47. c7+ {[%emt 0:01:06]} Rxc7+ {[%emt 0:00:32]} 48. Rxc7 {[%emt 0:00:04]} a5 {[%emt 0:00:30]} 49. Rc8+ {[%emt 0:00:13]} Kd7 {[%emt 0:00:09]} 50. Ra8 {[%emt 0:00:05]} Kd6 {[%emt 0:01:52]} 51. Rxa5 {[%emt 0:00:07]} b3 {[%emt 0:00:17]} 52. Rb5 {[%emt 0:00:05]} b2 {[%emt 0:00:14]} 53. Rxb2 {[%emt 0:00:04]} Kd5 {[%emt 0:00:04]} 54. Re2 {[%emt 0:00:19]} 1-0

[Event "WYCC 2018 G18"]
[Site "Halkidiki"]
[Date "2018.10.28"]
[Round "9"]
[White "Gillis Onieva, Celia"]
[Black "Du, Yuxin"]
[Result "1-0"]
[ECO "A40"]
[WhiteElo "1892"]
[BlackElo "2011"]
[Annotator "NA"]
[PlyCount "85"]
[EventDate "2018.10.20"]
[EventType "swiss"]
[EventCountry "GRE"]
[SourceTitle "playchess.com"]
[Source "ChessBase"]
[SourceQuality "1"]
[TimeControl "40/5400+30:1800+30"]

1. d4 Nf6 2. c4 e6 3. g3 c5 4. d5 exd5 5. cxd5 b5 6. Nf3 d6 7. e4 Ba6 8. a4 Qa5+ 9. Nfd2 b4 10. Nc4 Qc7 11. Nbd2 Nbd7 12. Bg2 O-O-O 13. O-O h5 14. h4 Ne5 15. Qc2 g6 16. Rd1 Nfd7 17. Bf1 Bb7 18. a5 Kb8 19. a6 Ba8 20. Qa4 Bg7 21. Qb5+ Nb6 22. Nxe5 Bxe5 23. Nc4 Bd4 24. Bf4 f5 25. Rac1 fxe4 26. Rxd4 Rhf8 27. Rdd1 Rxf4 28. gxf4 Qe7 29. Nxb6 axb6 30. Qxb6+ Kc8 31. Bh3+ Rd7 32. Bxd7+ Qxd7 33. a7 Qg4+ 34. Kf1 Qh3+ 35. Ke1 Qh1+ 36. Kd2 Qf3 37. Qa6+ Kc7 38. Qe2 Qxf4+ 39. Qe3 Qxh4 40. Rg1 Qf6 41. Qxe4 Qxf2+ 42. Kd3 Qxb2 43. Rxg6 1-0

[Event "WYCC 2018 G18"]
[Site "Halkidiki"]
[Date "2018.10.28"]
[Round "9"]
[White "Buchta, Agnieszka"]
[Black "Stashis, Anna"]
[Result "1/2-1/2"]
[ECO "B34"]
[WhiteElo "1879"]
[BlackElo "1979"]
[Annotator "NA"]
[PlyCount "58"]
[EventDate "2018.10.20"]
[EventType "swiss"]
[EventCountry "GRE"]
[SourceTitle "playchess.com"]
[Source "ChessBase"]
[SourceQuality "1"]
[TimeControl "40/5400+30:1800+30"]

1. e4 {[%emt 0:01:04]} c5 {[%emt 0:00:00]} 2. Nf3 {[%emt 0:00:06]} Nc6 {[%emt 0:00:00]} 3. d4 {[%emt 0:00:22]} cxd4 {[%emt 0:00:05]} 4. Nxd4 {[%emt 0:00:04]} Nf6 {[%emt 0:00:12]} 5. Nc3 {[%emt 0:00:07]} e5 {[%emt 0:00:07]} 6. Ndb5 {[%emt 0:00:18]} d6 {[%emt 0:00:10]} 7. Nd5 Nxd5 {[%emt 0:00:43]} 8. exd5 {[%emt 0:00:25]} Nb8 {[%emt 0:00:32]} 9. a4 {[%emt 0:00:36]} Be7 {[%emt 0:05:14]} 10. Be2 {[%emt 0:00:12]} a6 {[%emt 0:06:51]} 11. Na3 {[%emt 0:00:58]} O-O {[%emt 0:02:44]} 12. O-O {[%emt 0:00:44]} Nd7 {[%emt 0:05:22]} 13. Bd2 {[%emt 0:01:44]} Nf6 {[%emt 0:08:58]} 14. Bb4 {[%emt 0:06:30]} a5 {[%emt 0:05:04]} 15. Be1 {[%emt 0:07:33]} Ne4 {[%emt 0:13:19]} 16. Nc4 {[%emt 0:09:15]} f5 {[%emt 0:02:43]} 17. f3 {[%emt 0:08:07]} Nc5 {[%emt 0:08:40]} 18. Bf2 {[%emt 0:01:41]} Qc7 {[%emt 0:01:56]} 19. c3 {[%emt 0:15:22]} Bd7 {[%emt 0:04:05]} 20. b3 {[%emt 0:01:36]} Bf6 {[%emt 0:10:06]} 21. Na3 {[%emt 0:12:31]} e4 {[%emt 0:06:33]} 22. Bd4 {[%emt 0:08:17]} exf3 {[%emt 0:10:30]} 23. Bxf3 {[%emt 0:01:32]} Rae8 {[%emt 0:00:39]} 24. Rb1 {[%emt 0:06:10]} Ne4 {[%emt 0:04:13]} 25. Rc1 {[%emt 0:04:55]} Bg5 {[%emt 0:00:15]} 26. Rc2 {[%emt 0:01:59]} Nc5 {[%emt 0:00:56]} 27. Rb2 {[%emt 0:02:43]} Ne4 {[%emt 0:01:18]} 28. Rc2 {[%emt 0:02:23]} Nc5 {[%emt 0:00:23]} 29. Rb2 {[%emt 0:00:02]} Ne4 {[%emt 0:00:27]} 1/2-1/2

[Event "WYCC 2018 G18"]
[Site "Halkidiki"]
[Date "2018.10.28"]
[Round "9"]
[White "Muratova, Saltanat"]
[Black "Manova, Ivana"]
[Result "0-1"]
[ECO "C88"]
[WhiteElo "1859"]
[BlackElo "1951"]
[Annotator "NA"]
[PlyCount "172"]
[EventDate "2018.10.20"]
[EventType "swiss"]
[EventCountry "GRE"]
[SourceTitle "playchess.com"]
[Source "ChessBase"]
[SourceQuality "1"]
[TimeControl "40/5400+30:1800+30"]

1. e4 {[%emt 0:00:00]} e5 {[%emt 0:00:00]} 2. Nf3 {[%emt 0:00:00]} Nc6 {[%emt 0:00:00]} 3. Bb5 {[%emt 0:00:00]} a6 {[%emt 0:00:00]} 4. Ba4 {[%emt 0:00:00]} Nf6 {[%emt 0:00:00]} 5. O-O {[%emt 0:00:00]} Be7 {[%emt 0:00:08]} 6. Re1 {[%emt 0:00:10]} b5 {[%emt 0:00:26]} 7. Bb3 {[%emt 0:00:05]} O-O {[%emt 0:00:27]} 8. d3 {[%emt 0:00:05]} d6 {[%emt 0:00:43]} 9. Bd2 {[%emt 0:00:06]} Bg4 {[%emt 0:14:29]} 10. c3 {[%emt 0:09:56]} Na5 {[%emt 0:07:33]} 11. Bc2 {[%emt 0:01:27]} c5 {[%emt 0:02:16]} 12. h3 {[%emt 0:00:50]} Bd7 {[%emt 0:02:02]} 13. a3 {[%emt 0:05:38]} Qc7 {[%emt 0:08:35]} 14. b4 {[%emt 0:07:22]} Nc6 {[%emt 0:04:09]} 15. d4 {[%emt 0:24:43]} cxd4 {[%emt 0:20:44]} 16. cxd4 {[%emt 0:00:06]} Nxd4 {[%emt 0:00:41]} 17. Nxd4 {[%emt 0:00:44]} exd4 {[%emt 0:00:02]} 18. Bg5 {[%emt 0:03:47]} Be6 {[%emt 0:10:19]} 19. Nd2 {[%emt 0:03:14]} Rac8 {[%emt 0:02:28]} 20. Rc1 {[%emt 0:09:40]} Qb6 {[%emt 0:06:54]} 21. Nf3 {[%emt 0:05:52]} Rc4 {[%emt 0:02:10]} 22. Bb1 {[%emt 0:10:15]} h6 {[%emt 0:03:41]} 23. Bh4 {[%emt 0:03:06]} Rxc1 {[%emt 0:02:40]} 24. Qxc1 {[%emt 0:00:05]} Rc8 {[%emt 0:01:13]} 25. Qd2 {[%emt 0:00:42]} Qc7 {[%emt 0:04:31]} 26. Qxd4 {[%emt 0:02:43]} a5 {[%emt 0:01:29]} 27. Bd3 {[%emt 0:04:47]} axb4 {[%emt 0:01:03]} 28. axb4 {[%emt 0:00:23]} Bc4 {[%emt 0:00:38]} 29. Rc1 {[%emt 0:01:05]} Qb7 {[%emt 0:03:47]} 30. Bb1 {[%emt 0:06:14]} Nh5 {[%emt 0:01:14]} 31. Bxe7 {[%emt 0:00:24]} Qxe7 {[%emt 0:00:02]} 32. Bd3 {[%emt 0:00:48]} Nf4 {[%emt 0:00:21]} 33. Bf1 {[%emt 0:00:57]} Qe6 {[%emt 0:00:39]} 34. Rd1 {[%emt 0:01:07]} Be2 {[%emt 0:00:46]} 35. Re1 {[%emt 0:00:24]} Nxh3+ {[%emt 0:00:24]} 36. gxh3 {[%emt 0:00:32]} Bxf3 {[%emt 0:00:02]} 37. Qe3 {[%emt 0:00:35]} Bh5 {[%emt 0:00:20]} 38. Bxb5 {[%emt 0:00:08]} Rb8 {[%emt 0:00:29]} 39. Qd3 {[%emt 0:00:10]} d5 {[%emt 0:00:46]} 40. e5 {[%emt 0:00:00]} Bg6 {[%emt 0:00:00]} 41. Qf1 {[%emt 0:03:47]} Be4 42. f3 {[%emt 0:05:04]} Bf5 {[%emt 0:08:54]} 43. Kh2 {[%emt 0:00:14]} Bxh3 {[%emt 0:00:37]} 44. Qxh3 {[%emt 0:02:00]} Qxh3+ {[%emt 0:00:05]} 45. Kxh3 {[%emt 0:00:04]} Rxb5 {[%emt 0:00:05]} 46. Rb1 {[%emt 0:00:43]} Kf8 {[%emt 0:11:42]} 47. Kg4 {[%emt 0:03:27]} Ke7 {[%emt 0:00:52]} 48. f4 {[%emt 0:00:06]} Ke6 {[%emt 0:06:26]} 49. Rb2 {[%emt 0:00:15]} d4 {[%emt 0:00:50]} 50. Kf3 {[%emt 0:00:26]} Kd5 {[%emt 0:00:31]} 51. Rb1 {[%emt 0:00:09]} g5 {[%emt 0:01:43]} 52. Rh1 {[%emt 0:05:28]} Rxb4 {[%emt 0:00:53]} 53. Rxh6 {[%emt 0:00:05]} Rb3+ {[%emt 0:00:46]} 54. Kg4 {[%emt 0:00:06]} gxf4 {[%emt 0:03:52]} 55. Kxf4 {[%emt 0:00:05]} Kc4 {[%emt 0:01:12]} 56. Rf6 {[%emt 0:06:39]} Rb1 {[%emt 0:00:07]} 57. Kg3 {[%emt 0:00:21]} d3 {[%emt 0:00:56]} 58. Rd6 {[%emt 0:01:30]} Kc3 {[%emt 0:00:34]} 59. Kf2 {[%emt 0:01:59]} Rb2+ {[%emt 0:00:24]} 60. Ke1 {[%emt 0:00:47]} Re2+ {[%emt 0:00:17]} 61. Kd1 {[%emt 0:00:22]} Rxe5 {[%emt 0:00:29]} 62. Rf6 {[%emt 0:00:25]} Rh5 {[%emt 0:00:49]} 63. Rc6+ {[%emt 0:00:06]} Kd4 {[%emt 0:00:12]} 64. Rc7 {[%emt 0:00:50]} f5 {[%emt 0:00:51]} 65. Rd7+ {[%emt 0:00:09]} Ke3 {[%emt 0:00:25]} 66. Re7+ {[%emt 0:00:03]} Kf4 {[%emt 0:00:23]} 67. Kd2 {[%emt 0:00:01]} Rh3 {[%emt 0:00:21]} 68. Re8 {[%emt 0:00:54]} Rf3 {[%emt 0:00:38]} 69. Rg8 {[%emt 0:00:13]} Rg3 {[%emt 0:00:35]} 70. Rf8 {[%emt 0:00:17]} Kg4 {[%emt 0:00:28]} 71. Rg8+ {[%emt 0:00:10]} Kh3 {[%emt 0:00:06]} 72. Rf8 {[%emt 0:00:11]} Kg4 {[%emt 0:00:49]} 73. Rg8+ {[%emt 0:00:07]} Kf3 {[%emt 0:00:10]} 74. Rf8 {[%emt 0:00:31]} f4 {[%emt 0:00:42]} 75. Rf7 {[%emt 0:01:13]} Rg5 {[%emt 0:00:49]} 76. Kxd3 {[%emt 0:00:17]} Rd5+ {[%emt 0:00:05]} 77. Kc3 {[%emt 0:00:24]} Ke3 {[%emt 0:00:18]} 78. Re7+ {[%emt 0:00:03]} Kf2 {[%emt 0:00:10]} 79. Rf7 {[%emt 0:00:23]} f3 {[%emt 0:00:12]} 80. Rf8 {[%emt 0:00:11]} Ke2 {[%emt 0:00:22]} 81. Re8+ {[%emt 0:00:04]} Kf1 {[%emt 0:00:19]} 82. Rf8 {[%emt 0:00:10]} f2 {[%emt 0:00:18]} 83. Rf7 {[%emt 0:00:05]} Ke2 {[%emt 0:00:13]} 84. Re7+ {[%emt 0:00:02]} Kf3 {[%emt 0:00:13]} 85. Rf7+ {[%emt 0:00:30]} Ke3 {[%emt 0:00:16]} 86. Kc4 {[%emt 0:00:20]} Rd4+ {[%emt 0:00:19] Kxd4+} 0-1